Cogmind - Beta 11 X6 @@@ ROGUE MODE // 2021.08.08 @ 21:38:30 Player: Olga Result: Self-destructed Performance ------------- Evolutions (2) 1000 Regions Visited (4) 800 Robots Destroyed (17) 85 Value Destroyed (336) 336 Prototype IDs (2) 40 Alien Tech Used (0) 0 Bonus (0) 0 TOTAL SCORE: 2261 Bonus ------- None Cogmind --------- Core Integrity 550/550 Matter 300/300 Energy 250/250 System Corruption 0% Temperature Cool (0) Movement Walking (120) Location -8/Materials Parts ------- > --- POWER (1) -------- Ion Engine > --- PROPULSION (4) --- Aluminum Leg Aluminum Leg Aluminum Leg Compact Wheel > --- UTILITY (4) ------ Medium Storage Unit Sensor Array Signal Interpreter Medium Armor Plating > --- WEAPON (2) ------- EM Pulse Gun Heavy Assault Rifle > --- INVENTORY (10) --- Ion Engine Weight Redist. System Targeting Computer Light Armor Plating Small Laser Heavy Assault Rifle Grenade Launcher Mining Laser Peak State ------------ > --- POWER ------------ Ion Engine > --- PROPULSION ------- Aluminum Leg Aluminum Leg Aluminum Leg Compact Wheel > --- UTILITY ---------- Medium Storage Unit Sensor Array Signal Interpreter Medium Armor Plating > --- WEAPON ----------- EM Pulse Gun Heavy Assault Rifle > --- INVENTORY -------- Ion Engine Weight Redist. System Targeting Computer Light Armor Plating Small Laser Heavy Assault Rifle Grenade Launcher Mining Laser [Rating: 14] Favorites ----------- Power Ion Engine Engine Ion Engine Propulsion Aluminum Leg Leg Aluminum Leg Wheel Compact Wheel Utility Medium Storage Unit Device Sensor Array Storage Medium Storage Unit Processor Signal Interpreter Protection Medium Armor Plating Weapon Light Assault Rifle Energy Gun EM Pulse Gun Ballistic Gun Light Assault Rifle Build | -11 -10 -10 -9 -8 ------- Run | Scr Mat Min Mat Mat Slots Evolved 4 | . . . 2 2 Power . | . . . . . Propulsion 2 | . . . . 2 Utility 2 | . . . 2 . Weapon . | . . . . . Parts Attached 18 | . 3 8 5 2 Power 1 | . . 1 . . Engine 1 | . . 1 . . Core . | . . . . . Reactor . | . . . . . Propulsion 5 | . . 2 1 2 Treads . | . . . . . Leg 4 | . . 2 . 2 Wheel 1 | . . . 1 . Hover . | . . . . . Flight . | . . . . . Utility 7 | . 3 1 3 . Device 2 | . 1 . 1 . Storage 1 | . 1 . . . Processor 1 | . . 1 . . Hackware . | . . . . . Protection 3 | . 1 . 2 . Artifact . | . . . . . Weapon 5 | . . 4 1 . Energy Gun 1 | . . . 1 . Energy Cannon . | . . . . . Ballistic Gun 4 | . . 4 . . Ballistic Cannon . | . . . . . Launcher . | . . . . . Special Weapon . | . . . . . Impact Weapon . | . . . . . Slashing Weapon . | . . . . . Piercing Weapon . | . . . . . Special Melee Weapon . | . . . . . Unidentified Prototypes . | . . . . . Parts Lost 2 | . . . 2 . Power . | . . . . . Propulsion . | . . . . . Utility 1 | . . . 1 . Weapon 1 | . . . 1 . Highest Loss Streak 2 | . . . 2 . Average Slot Usage (%) 98 | . 97 100 97 100 Engine 13 | . 14 14 11 9 Leg 25 | . 28 28 13 27 Wheel 1 | . . . 8 9 Device 7 | . 11 5 11 9 Storage 13 | . 14 14 11 9 Processor 6 | . . 8 11 9 Protection 2 | . . . 9 9 Energy Gun 5 | . 14 . 6 9 Ballistic Gun 21 | . 14 27 14 9 Naked Turns . | . . . . . Heaviest Build 28 | 13 19 19 28 28 Greatest Support 30 | 20 20 20 20 30 Greatest Overweight (x) 1 | . . . 1 . Average Overweight (x) . | . . . . . Largest Inventory Capacity 10 | . 10 10 10 10 Average Capacity 9 | . 9 10 10 10 Most Carried 10 | . 10 10 10 9 Average Carried 9 | . 8 9 9 8 Final Capacity 10 | 8 10 10 10 10 Final Carried 10 | 6 10 10 10 8 Class Distribution -------------------- 58% | Mutant 41% | Scavenger-Mutant Dominant Class ---------------- Mutant | -10/Materials Mutant | -10/Mines Scavenger-Mutant | -9/Materials Scavenger-Mutant | -8/Materials Resources | -11 -10 -10 -9 -8 ----------- Run | Scr Mat Min Mat Mat Matter Collected 467 | 200 39 94 114 20 Remotely . | . . . . . Salvage Created 520 | . 175 154 191 . Parts 39 | . 10 13 16 . Haulers Intercepted 1 | . 1 . . . Recyclers Shooed 1 | . . . 1 . Parts Field Recycled . | . . . . . Retrieved Matter . | . . . . . Parts Self-Destructed . | . . . . . Prevented . | . . . . . Kills | -11 -10 -10 -9 -8 ------- Run | Scr Mat Min Mat Mat Combat Hostiles Destroyed 15 | . 2 5 8 . Guns 15 | . 2 5 8 . Classes Destroyed 5 | . 3 1 1 . Builder 1 | . 1 . . . Hauler 1 | . 1 . . . Swarmer 9 | . . 3 6 . Grunt 4 | . 2 2 . . Sentry 2 | . . . 2 . Best Kill Streak 4 | . 3 3 4 . Combat Bots Only 4 | . 2 3 4 . Max Kills in Single Turn 2 | . 2 1 1 . Gunslinging . | . . . . . Exploded . | . . . . . Melee . | . . . . . Uniques/NPCs Destroyed . | . . . . . Combat | -11 -10 -10 -9 -8 -------- Run | Scr Mat Min Mat Mat Damage Taken 689 | . 57 223 409 . Core 82 | . 11 28 43 . Absorbed by Shields . | . . . . . Core Remaining (%) 91 | 100 . 84 89 . Volleys Fired 46 | . 9 15 22 . Largest 2 | . 2 2 2 . Hottest 63 | . 60 60 63 . Shots Fired 85 | . 18 30 37 . Gun 85 | . 18 30 37 . Cannon . | . . . . . Launcher . | . . . . . Special . | . . . . . Kinetic 64 | . 9 23 32 . Thermal . | . . . . . Explosive . | . . . . . Electromagnetic 21 | . 9 7 5 . Robot Hit Streak 11 | . 7 8 11 . Robot Miss Streak 3 | . 2 2 3 . Penetration Max . | . . . . . Secondary Targets . | . . . . . Shots Hit Robots 58 | . 12 21 25 . Core Hits 31 | . 7 13 11 . Critical Kills . | . . . . . Critical Parts Destroyed . | . . . . . Critical Strikes 1 | . . 1 . . Corrupt 1 | . . 1 . . Melee Attacks . | . . . . . Impact . | . . . . . Slashing . | . . . . . Piercing . | . . . . . Sneak Attacks . | . . . . . Combat Hostiles . | . . . . . Follow-up Attacks . | . . . . . Damage Inflicted 707 | . 205 189 313 . Guns 604 | . 117 176 311 . Cannons . | . . . . . Explosions 88 | . 88 . . . Melee . | . . . . . Ramming 15 | . . 13 2 . Kinetic 449 | . 54 130 265 . Thermal 88 | . 88 . . . Explosive . | . . . . . Electromagnetic 155 | . 63 46 46 . Impact . | . . . . . Slashing . | . . . . . Piercing . | . . . . . Highest Corruption . | . . . . . Average Corruption . | . . . . . Corruption Purged . | . . . . . Overload Shots . | . . . . . Overflow Damage . | . . . . . Projectiles . | . . . . . Explosions . | . . . . . Melee . | . . . . . Knockbacks . | . . . . . Impact . | . . . . . Kinetic . | . . . . . Secondary . | . . . . . Self-Inflicted Damage 1 | . . . 1 . Shots . | . . . . . Rammed 1 | . . . 1 . Targets Rammed 6 | . . 5 1 . Kicked 5 | . . 5 . . Crushed . | . . . . . Highest Temperature 46 | . 46 40 30 . Average Temperature 14 | . 21 16 7 . Received Heat Transfer 141 | . 30 84 27 . Siege Activations . | . . . . . Robots Corrupted . | . . . . . Combat Hostiles . | . . . . . Parts Fried . | . . . . . Impact Corruptions . | . . . . . Robots Melted . | . . . . . Combat Hostiles . | . . . . . Parts Melted . | . . . . . Heat Transferred 50 | . 50 . . . Parts Sabotaged . | . . . . . Parts Stolen . | . . . . . Parts Stripped . | . . . . . Power Chain Reactions 1 | . 1 . . . Missiles Intercepted . | . . . . . Alert | -11 -10 -10 -9 -8 ------- Run | Scr Mat Min Mat Mat Peak Influence 288 | . 91 70 288 57 Initial 57 | . . . . 57 Average 53 | . 19 34 156 57 Maximum Alert Level 1 | . . . 1 . Low Security (%) 95 | . 100 100 76 100 Level 1 4 | . . . 23 . Level 2 . | . . . . . Level 3 . | . . . . . Level 4 . | . . . . . Level 5 . | . . . . . High Security . | . . . . . Max Security . | . . . . . Squads Dispatched 2 | . 1 . 1 . Investigation 1 | . 1 . . . Extermination . | . . . . . Reinforcement 1 | . . . 1 . Assault . | . . . . . Garrison . | . . . . . Intercept . | . . . . . Construction Impeded . | . . . . . Haulers Reinforced . | . . . . . Active Scanning Responses . | . . . . . Cargo Convoy Interrupts . | . . . . . Stealth | -11 -10 -10 -9 -8 --------- Run | Scr Mat Min Mat Mat Distress Signals . | . . . . . Communications Jammed . | . . . . . Distress Signals . | . . . . . Times Spotted 26 | . 4 7 15 . Peak Tracking Total 7 | . 3 3 7 . Tactical Retreats 2 | . . . 2 . Traps | -11 -10 -10 -9 -8 ------- Run | Scr Mat Min Mat Mat Traps Triggered 1 | . 1 . . . Indirectly . | . . . . . Trap Hack Attempts . | . . . . . Triggered . | . . . . . Disarmed . | . . . . . Reprogrammed . | . . . . . Reused . | . . . . . Traps Extracted . | . . . . . Installed . | . . . . . Triggered . | . . . . . Machines | -11 -10 -10 -9 -8 ---------- Run | Scr Mat Min Mat Mat Machines Disabled . | . . . . . Max in Single Turn . | . . . . . Machines Sabotaged . | . . . . . Garrisons Compromised . | . . . . . Overloaded Fab Kills . | . . . . . Fab Network Shutdowns . | . . . . . Hacking | -11 -10 -10 -9 -8 --------- Run | Scr Mat Min Mat Mat Machines Accessed 5 | . 3 . 2 . Terminals 5 | . 3 . 2 . Fabricators . | . . . . . Repair Stations . | . . . . . Recycling Units . | . . . . . Scanalyzers . | . . . . . Garrison Access . | . . . . . Total Hacks 14 | . 8 . 6 . Successful 6 | . 2 . 4 . Failed 8 | . 6 . 2 . Catastrophic . | . . . . . Database Lockouts . | . . . . . Manual 12 | . 6 . 6 . Terminals 14 | . 8 . 6 . Fabricators . | . . . . . Repair Stations . | . . . . . Recycling Units . | . . . . . Scanalyzers . | . . . . . Garrison Access . | . . . . . Terminal Hacks 4 | . 2 . 2 . Prototype ID Bank 1 | . 1 . . . Branch Access Points 2 | . 1 . 1 . Unreport Threat 1 | . . . 1 . Fabricator Hacks . | . . . . . Repair Station Hacks . | . . . . . Recycling Unit Hacks . | . . . . . Scanalyzer . | . . . . . Garrison Access Hacks . | . . . . . Unauthorized Hacks 2 | . . . 2 . Terminals 2 | . . . 2 . Botnet 2 | . . . 2 . Fabricators . | . . . . . Repair Stations . | . . . . . Recycling Units . | . . . . . Scanalyzers . | . . . . . Garrison Access . | . . . . . Data Cores Recovered . | . . . . . Used . | . . . . . Hacking Detections 5 | . 3 . 2 . Full Trace Events . | . . . . . Feedback Events . | . . . . . Feedback Blocked . | . . . . . Robot Schematics Acquired . | . . . . . Robots Built . | . . . . . Matter . | . . . . . Time . | . . . . . Total Robot Build Rating . | . . . . . Part Schematics Acquired . | . . . . . Parts Built . | . . . . . Matter . | . . . . . Time . | . . . . . Total Part Build Rating . | . . . . . Parts Repaired . | . . . . . Time . | . . . . . Parts Recycled . | . . . . . Recycled Matter . | . . . . . Retrieved Matter . | . . . . . Retrieved Components . | . . . . . Parts Scanalyzed . | . . . . . Part Schematics Acquired . | . . . . . Parts Damaged . | . . . . . Bothacking | -11 -10 -10 -9 -8 ------------ Run | Scr Mat Min Mat Mat Used RIF Installer . | . . . . . Robots Hacked . | . . . . . Non-combat . | . . . . . Combat . | . . . . . Robot Hacks Applied . | . . . . . Relay Couplers Released . | . . . . . Robots Rewired . | . . . . . Allies Hacked . | . . . . . Hacks Repelled . | . . . . . Allies | -11 -10 -10 -9 -8 -------- Run | Scr Mat Min Mat Mat Total Allies . | . . . . . Largest Group . | . . . . . Highest-Rated Group . | . . . . . Highest-Rated Ally . | . . . . . Total Orders . | . . . . . Ally Attacks . | . . . . . Total Damage . | . . . . . Kills . | . . . . . Allies Corrupted . | . . . . . Allies Melted . | . . . . . Intel | -11 -10 -10 -9 -8 ------- Run | Scr Mat Min Mat Mat Robot Analysis Total . | . . . . . Derelict Logs Recovered 2 | . . 2 . . Drone Launches . | . . . . . Drone Recoveries . | . . . . . Exploration | -11 -10 -10 -9 -8 ------------- Run | Scr Mat Min Mat Mat Turns Passed 1823 | . 442 997 338 46 Spaces Moved 1355 | 1 334 771 213 36 Core . | . . . . . Treads . | . . . . . Legs 1187 | 1 334 771 45 36 Wheels 168 | . . . 168 . Hover . | . . . . . Flight . | . . . . . Fastest Speed 115 | 120 120 120 115 120 Average Speed 119 | 120 120 120 116 120 Slowest Speed 120 | 120 120 120 120 120 Overloaded Moves . | . . . . . Propulsion Burnouts . | . . . . . Robots Hopped . | . . . . . Cave-ins Triggered . | . . . . . Exploration Rate (%) 35 | 1 48 99 21 7 Regions Visited 4 Branch Regions 1 Pre-discovered Areas 1 | . . 1 . . Known Exits Taken 3 | . 1 1 1 . Unknown Exits Taken 1 | 1 . . . . Scrap Searched 3 | . . 3 . . Spaces Dug . | . . . . . Terrain Destroyed 9 | . 9 . . . Melee . | . . . . . Projectile . | . . . . . AOE 9 | . 9 . . . Terrain Rammed . | . . . . . Walls Destroyed . | . . . . . Machines Disabled . | . . . . . Actions | -11 -10 -10 -9 -8 --------- Run | Scr Mat Min Mat Mat Total 1486 | . 361 819 268 38 Wait 37 | . . 13 24 . Move 1351 | . 333 770 212 36 Hop . | . . . . . Pick Up 14 | . 9 1 4 . Fast Attach 2 | . 2 . . . Attach 6 | . . . 4 2 Detach . | . . . . . Swap 10 | . 1 8 1 . Drop 14 | . 7 7 . . Fire 46 | . 9 15 22 . Melee . | . . . . . Ram 1 | . . . 1 . Kick 5 | . . 5 . . Crush . | . . . . . Escape Stasis . | . . . . . Rewire . | . . . . . Trap . | . . . . . Miscellaneous . | . . . . . Route ------- -11/Scrapyard -10/Materials (discovered 3 exits: *Mat / *Min x2) -10/Mines (discovered 2 exits: *Mat x2) -9/Materials (discovered 2 exits: *Mat / Min) -8/Materials History --------- Turn | Location | Event 1 | -11/Scrapyard | Discovered new exit (range 0) 1 | -11/Scrapyard | Entered Materials 277 | -10/Materials | Identified exit to Mines 297 | -10/Materials | Discovered new exit (range 6) 302 | -10/Materials | Build established: Mutant 443 | -10/Materials | Entered Mines 457 | -10/Mines | Discovered new exit (range 6) 553 | -10/Mines | Discovered new exit (range 6) 654 | -10/Mines | Learned location of Storage (-7) 691 | -10/Mines | Learned 4 Materials zone layouts 906 | -10/Mines | Identified exit to Materials 1202 | -10/Mines | Joined a pair of Derelicts in attacking an 0b10 outpost 1374 | -10/Mines | Build established: Scavenger-Mutant 1440 | -10/Mines | Entered Materials 1440 | -9/Materials | Evolved 2 slots: Utility x2 1441 | -9/Materials | Identified exit to Materials 1450 | -9/Materials | Identified exit to Mines 1778 | -9/Materials | Entered another Materials area 1778 | -8/Materials | Evolved 2 slots: Propulsion x2 1824 | -8/Materials | Self-destructed Last Messages --------------- 01684_ Y-45 Defender destroyed. 01693_ Acquired 55 matter. 01696_ Acquired 7 matter. 01708_ K-01 Serf collects debris. 01728_ Acquired Hvy. Assault Rifle. 01734_ Connecting with Terminal... >>Alert(Purge) Purged threat record, alert level lowered. >>Trojan(Botnet) Trojan loaded successfully. Testing... Terminal linked with 1 system. Awaiting botnet instructions. 01760_ R-06 Scavenger collects Corrupted Hvy. Assault Rifle. 01764_ R-06 Scavenger collects Corrupted Imp. Ion Engine. 01767_ R-06 Scavenger collects Heat Sink. PARAMETERS=PROPULSION+2 LOCATION=MATERIALS GOAL=ESCAPE 01789_ Acquired 20 matter. Map ----- +----------------------------------------------------+ | | | | | ??????????????????????????????????? | | ??????????????????????????????????? | | ??????????????????????????????????? | | ??????????????????????????????????? | | ??????????????????????????????????? | | ??????????????????????????????????? | | ??????????????????????????????????? | | ??????????????????????????????????? | | ?????????????????????????????###### | | ?????????????????????????????# # | | ?????????????????????????????#! ! # | | ?????????????????????????????# # | | ?????????????????????????##### # | | ??????????????????######## # # | | ??????????????????# """ # # # | | ??????????????????# """ # # # | | ??????????????????# """ + + !# | | ??????????????????# # # # | | ??????????????????# # ###### | | ??????????????????# % ] # # /# | | ??????????????????######## #= # | | ??????????????????# *** # # # | | ??????????????????# ** # # # | | ??????????????????# ** ! @ + # | | ??????????????????# # # # | | ??????????????????# = # # =[ # | | ??????????????????# ] ?# # [% # | | ??????????????????######?# # # | | ?????????????????????????# ###### | | ?????????????????????????# #????? | | ?????????????????????????+ #????? | | ?????????????????????????# #????? | | ?????????????????????????# #????? | | ?????????????????????????# #????? | | ?????????????????????????# #????? | | ?????????????????????????# #????? | | ?????????????????????????# #????? | | ?????????????????????????# #????? | | ?????????????????????????? #????? | | ?????????????????????????? ?????? | | ??????????????????????????????????? | | ??????????????????????????????????? | | ??????????????????????????????????? | | ??????????????????????????????????? | | ??????????????????????????????????? | | ??????????????????????????????????? | | ??????????????????????????????????? | | ??????????????????????????????????? | +----------------------------------------------------+ Best States ------------- Heat Dissipation 31 Energy Generation 10 Energy Capacity 250 Matter Stores 300 Matter Capacity 300 Sight Range 16 Robot Scan Range 14 Terrain Scan Density 10 Armor Coverage 225 Propulsion Shielding 33 Evasion (%) 55 Item Schematics ----------------- None Robot Schematics ------------------ None Fabricated ------------ Nothing Alien Tech Used ----------------- None Achievements -------------- None Challenges ------------ None Game ------ Seed IntegrityAntimissileAnalyzer Manual? 0 Play Time 00:18:51 Cumulative 41.9 hours Start 2021.08.08 @ 21:19:09 End 2021.08.08 @ 21:38:30 Sessions 1 Manual Loads 0 Difficulty Rogue Special Mode None Game No. 53 Rogue 53 Adventurer 0 Explorer 0 Win Type - Total 0 Types 0/0/0/0/0/0/0/0/0 Lore% 33 Gallery% 35 Achievement% 29 Wizard Run 0 Options --------- ASCII 1 Keyboard 0 Movement Vi Keybinds 0 Fullscreen 2 Font 18/SmallcapsGlow Map View 76x50 Tactical HUD 1 Map Filters NONE Filters NONE Steam 1 RUN: 221d40ae-a1ec-4101-ad5e-91b3b3effc5d